fUSD/lending_fUSD_20240201
["ID","MTS","AMOUNT","RATE_DAILY","PERIOD"]
[313125160,1706778642319,-500.0,0.00028493,2]
[313125161,1706778642329,-500.0,0.00028493,2]
[313125162,1706778642338,-9967.14,0.00028493,2]
[313125163,1706778642347,-786.41,0.00028493,5]
[313125164,1706778642356,-520.95,0.00028493,2]
[313125165,1706778642364,-500.0,0.00028493,2]
[313125166,1706778642374,-518.92,0.00028493,2]
[313125167,1706778642383,-847.38,0.00028493,2]
[313125168,1706778642392,-1428.6,0.00028493,5]
[313125169,1706778642401,-1586.17,0.00028493,2]
[313125170,1706778642409,-2377.68,0.00028493,2]
[313125171,1706778642418,-1848.73,0.00028493,2]
[313125172,1706778642427,-954.76,0.00028493,2]
[313125173,1706778642436,-781.3,0.00028493,2]
[313125174,1706778642445,-500.0,0.00028493,2]
[313125175,1706778642454,-500.0,0.00028493,2]
[313125176,1706778642462,-529.85,0.00028493,2]
[313125177,1706778642471,-714.71,0.00028493,2]
[313125178,1706778642480,-500.0,0.00028493,2]
[313125179,1706778642489,-979.26,0.00028493,2]
[313125180,1706778642499,-1530.57,0.00028493,2]
[313125181,1706778642508,-518.12,0.00028493,2]
[313125182,1706778642517,-914.52,0.00028493,2]
[313125183,1706778642526,-500.0,0.00028493,2]
[313125184,1706778642536,-500.0,0.00028493,2]
[313125185,1706778642544,-500.0,0.00028493,2]
[313125186,1706778642552,-500.0,0.00028493,2]
[313125187,1706778642562,-712.69,0.00028493,2]
[313125188,1706778642571,-1000.0,0.00028705,2]
[313125189,1706778642580,-155.76170727,0.00028728,2]
[313125190,1706778642589,-154.30799327,0.00028816,2]
[313125191,1706778642598,-1165.71011545,0.00028849,4]
[313125192,1706778642607,-68869.48271396,0.0002888,2]
[313125193,1706778642625,-646.80897918,0.0002888,2]
[313125194,1706778642637,-43300.60778546,0.0002888,2]
[313125195,1706778642648,-3727.40956189,0.0002888,2]
[313125196,1706778642659,-731.0,0.0002888,2]
[313125232,1706778643147,-500.0,0.00027397,2]
[313125233,1706778643157,-500.0,0.00027397,2]
[313125234,1706778643166,-257.4,0.00027397,10]
[313125235,1706778643175,-500.0,0.00027945,2]
[313125237,1706778643185,-136.08255703,0.00027945,2]
[313125238,1706778643198,-363.91744297,0.00027945,2]
[313125239,1706778643208,-544.25144522,0.00027945,2]
[313125240,1706778643217,-500.0,0.00028493,2]
[313125241,1706778643225,-500.0,0.00028493,2]
[313125242,1706778643235,-5555.02184239,0.0002888,2]
[313125243,1706778643247,-1784.05139579,0.0002888,2]
[313125244,1706778643260,-1572.90815554,0.0002888,2]
[313125245,1706778643271,-420.0,0.0002888,2]
[313125246,1706778643282,-5149.04347559,0.0002888,2]
[313125247,1706778643295,-5022.88379931,0.0002888,2]
[313125248,1706778643307,-1248.1231469,0.0002888,2]
[313125249,1706778643318,-2058.28818823,0.0002888,2]
[313125250,1706778643330,-287.35466078,0.0002888,2]
[313125251,1706778643343,-692.02618602,0.0002888,2]
[313125252,1706778643565,-136711.88852403,0.0002888,2]
[313125253,1706778643622,-1245.70852761,0.0002888,2]
[313125254,1706778643633,-430.72640198,0.0002888,2]
[313125255,1706778643644,-1007.43044093,0.0002888,2]
[313125256,1706778643659,-2555.83369033,0.0002888,2]
[313125257,1706778643671,-739.68232101,0.0002888,2]
[313125258,1706778643681,-1159.81592435,0.0002888,2]
[313125259,1706778643693,-354.33584849,0.0002888,2]
[313125260,1706778643704,-3379.265,0.0002888,2]
[313125277,1706778645746,-4850.0000002,0.0002888,2]
[313125285,1706778645803,-933.56801848,0.0002888,2]
[313125287,1706778645815,-1731.86442396,0.0002888,2]
[313125319,1706778646177,-93846.82152395,0.0002888,2]
[313125321,1706778646186,-1748.72231532,0.00028899,2]
[313125322,1706778646195,-166.64,0.00028999,2]
[313125324,1706778646203,-500.0,0.00029038,2]
[313125326,1706778646213,-500.0,0.00029038,2]
[313125328,1706778646222,-500.0,0.00029038,2]
[313125329,1706778646232,-500.0,0.00029038,2]
[313125331,1706778646242,-500.0,0.00029038,2]
[313125333,1706778646257,-500.0,0.00029038,2]
[313125335,1706778646266,-1114.08,0.00029038,2]
[313125337,1706778646276,-500.0,0.00029038,2]
[313125339,1706778646286,-500.0,0.00029038,2]
[313125341,1706778646296,-500.0,0.00029038,2]
[313125342,1706778646305,-500.0,0.00029038,2]
[313125344,1706778646315,-500.0,0.00029038,2]
[313125346,1706778646326,-500.0,0.00029038,2]
[313125348,1706778646335,-690.76,0.00029038,2]
[313125349,1706778646344,-500.0,0.00029038,2]
[313125351,1706778646354,-571.66,0.00029038,2]
[313125353,1706778646363,-704.32,0.00029038,2]
[313125355,1706778646372,-500.0,0.00029041,2]
[313125356,1706778646382,-500.0,0.00029041,2]
[313125357,1706778646391,-507.16,0.00029041,2]
[313125358,1706778646400,-500.0,0.00029041,2]
[313125359,1706778646409,-571.02,0.00029041,7]
[313125361,1706778646419,-500.0,0.00029041,2]
[313125363,1706778646428,-500.0,0.00029041,2]
[313125365,1706778646438,-271.53552614,0.00029041,2]
[313125367,1706778646447,-500.0,0.00029041,2]
[313125369,1706778646457,-500.0,0.00029041,2]
[313125371,1706778646467,-727.73,0.00029041,2]
[313125373,1706778646476,-2784.64,0.00029041,2]
[313125375,1706778646485,-394.93552977,0.00029041,2]
[313125377,1706778646495,-500.0,0.00029041,2]
[313125379,1706778646504,-860.78,0.00029041,2]
[313125381,1706778646513,-562.44,0.00029041,2]
[313125383,1706778646523,-500.0,0.00029041,2]
[313125385,1706778646533,-500.0,0.00029041,2]
[313125387,1706778646542,-500.0,0.00029041,2]
[313125389,1706778646551,-1719.87,0.00029041,2]
[313125391,1706778646561,-659.48,0.00029041,2]
[313125393,1706778646571,-500.0,0.00029041,2]
[313125395,1706778646580,-500.0,0.00029041,2]
[313125397,1706778646589,-500.0,0.00029041,2]
[313125399,1706778646599,-500.0,0.00029041,2]
[313125401,1706778646608,-748.96,0.00029041,2]
[313125403,1706778646618,-1740.65,0.00029041,2]
[313125405,1706778646627,-500.0,0.00029041,2]
[313125407,1706778646636,-500.0,0.00029041,2]
[313125409,1706778646646,-500.0,0.00029041,2]
[313125411,1706778646655,-500.0,0.00029041,2]
[313125414,1706778646665,-500.0,0.00029041,2]
[313125416,1706778646674,-500.0,0.00029041,2]
[313125418,1706778646684,-500.0,0.00029041,2]
[313125420,1706778646693,-500.0,0.00029041,2]
[313125422,1706778646702,-965.96,0.00029041,2]
[313125424,1706778646712,-595.36,0.00029041,2]
[313125426,1706778646721,-562.27,0.00029041,2]
[313125428,1706778646731,-500.0,0.00029041,2]
[313125430,1706778646740,-752.71,0.00029041,2]
[313125432,1706778646749,-500.0,0.00029041,2]
[313125434,1706778646760,-500.0,0.00029041,2]
[313125436,1706778646771,-1110.9,0.00029041,2]
[313125438,1706778646783,-500.0,0.00029041,2]
[313125440,1706778646793,-500.0,0.00029041,2]
[313125442,1706778646803,-701.69,0.00029041,2]
[313125444,1706778646813,-500.0,0.00029041,2]
[313125447,1706778646823,-500.0,0.00029041,2]
[313125449,1706778646833,-789.27,0.00029041,2]
[313125451,1706778646842,-500.0,0.00029041,2]
[313125453,1706778646852,-500.0,0.00029041,2]
[313125455,1706778646861,-948.54,0.00029041,2]
[313125457,1706778646871,-1122.8,0.00029041,2]
[313125459,1706778646880,-505.98,0.00029041,2]
[313125461,1706778646890,-500.0,0.00029041,2]
[313125463,1706778646899,-500.0,0.00029041,2]
[313125465,1706778646908,-500.0,0.00029041,2]
[313125467,1706778646917,-500.0,0.00029041,2]
[313125469,1706778646927,-705.17,0.00029041,2]
[313125471,1706778646936,-500.0,0.00029041,2]
[313125473,1706778646945,-1466.89,0.00029041,2]
[313125475,1706778646954,-500.0,0.00029041,2]
[313125477,1706778646963,-500.0,0.00029041,2]
[313125479,1706778646973,-500.0,0.00029041,2]
[313125481,1706778646982,-500.0,0.00029041,2]
[313125483,1706778646991,-500.0,0.00029041,2]
[313125485,1706778647002,-500.0,0.00029041,2]
[313125487,1706778647011,-500.0,0.00029041,2]
[313125489,1706778647021,-500.0,0.00029041,2]
[313125491,1706778647032,-1066.44,0.00029041,2]
[313125493,1706778647042,-500.0,0.00029041,2]
[313125494,1706778647051,-842.3,0.00029041,2]
[313125495,1706778647061,-500.0,0.00029041,2]
[313125496,1706778647070,-500.0,0.00029041,2]
[313125497,1706778647079,-500.0,0.00029041,2]
[313125498,1706778647089,-500.0,0.00029041,2]
[313125499,1706778647098,-500.0,0.00029041,2]
[313125500,1706778647108,-500.0,0.00029041,2]
[313125501,1706778647117,-500.0,0.00029041,2]
[313125502,1706778647127,-500.0,0.00029041,2]
[313125503,1706778647137,-548.67,0.00029041,2]
[313125504,1706778647146,-500.0,0.00029041,2]
[313125505,1706778647155,-500.0,0.00029041,2]
[313125506,1706778647164,-500.0,0.00029041,2]
[313125507,1706778647174,-500.0,0.00029041,2]
[313125508,1706778647183,-500.0,0.00029041,2]
[313125509,1706778647193,-4039.86516072,0.00029041,2]
[313125510,1706778647207,-5927.27483928,0.00029041,2]
[313125511,1706778647218,-786.41,0.00029041,5]
[313125512,1706778647227,-520.95,0.00029041,2]
[313125513,1706778647237,-500.0,0.00029041,2]
[313125514,1706778647248,-518.92,0.00029041,2]
[313125515,1706778647259,-847.38,0.00029041,2]
[313125516,1706778647269,-1428.6,0.00029041,5]
[313125517,1706778647278,-179.2171715,0.00029041,2]
[313125518,1706778647291,-258.24345965,0.00029041,2]
[313125519,1706778647302,-327.65799188,0.00029041,2]
[313125520,1706778647313,-421.605628,0.00029041,2]
[313125521,1706778647598,-399.44574897,0.00029041,2]
[313125522,1706778647607,-2258.07465136,0.00029041,2]
[313125523,1706778647638,-119.60534864,0.00029041,2]
[313125524,1706778647648,-1848.73,0.00029041,2]
[313125525,1706778647658,-954.76,0.00029041,2]
[313125526,1706778647667,-781.3,0.00029041,2]
[313125527,1706778647678,-500.0,0.00029041,2]
[313125528,1706778647688,-324.42112287,0.00029041,2]
[313125529,1706778647697,-529.85,0.00029041,2]
[313125530,1706778647707,-500.0,0.00029041,2]
[313125531,1706778647717,-714.71,0.00029041,2]
[313125532,1706778647727,-979.26,0.00029041,2]
[313125533,1706778647738,-1530.57,0.00029041,2]
[313125534,1706778647748,-518.12,0.00029041,2]
[313125535,1706778647759,-914.52,0.00029041,2]
[313125536,1706778647769,-500.0,0.00029041,2]
[313125537,1706778647780,-500.0,0.00029041,2]
[313125538,1706778647790,-500.0,0.00029041,2]
[313125539,1706778647986,-500.0,0.00029041,2]
[313125540,1706778647996,-712.69,0.00029041,2]
[313125541,1706778648006,-500.0,0.00029041,2]
[313125542,1706778648016,-500.0,0.00029041,2]
[313125543,1706778648026,-155.76170727,0.00029163,2]
[313125544,1706778648036,-2314.5476464,0.00029209,6]
[313125545,1706778648045,-249.23,0.0002921,2]
[313125546,1706778648054,-727.59032262,0.000293,2]
[313125547,1706778648063,-171.58,0.00029369,2]
[313125548,1706778648073,-5168.83837692,0.000295,4]
[313125549,1706778648083,-150.0,0.00029558,2]
[313125550,1706778648092,-262.89,0.00029579,10]
[313125551,1706778648101,-308.88,0.00029579,10]
[313125552,1706778648111,-2612.22364191,0.00029585,2]
[313125553,1706778648121,-512.1,0.00029585,2]
[313125554,1706778648130,-652.34,0.00029585,2]
[313125555,1706778648140,-500.0,0.00029585,2]
[313125556,1706778648149,-637.54,0.00029585,2]
[313125557,1706778648158,-2852.19,0.00029585,2]
[313125558,1706778648167,-500.0,0.00029585,2]
[313125559,1706778648177,-500.0,0.00029585,2]
[313125560,1706778648187,-2000.0,0.00029586,2]
[313125561,1706778648195,-500.0,0.00029586,2]
[313125562,1706778648205,-500.0,0.00029586,2]
[313125563,1706778648215,-500.0,0.00029586,2]
[313125564,1706778648223,-1114.08,0.00029586,2]
[313125565,1706778648232,-500.0,0.00029586,2]
[313125566,1706778648242,-500.0,0.00029586,2]
[313125567,1706778648253,-500.0,0.00029586,2]
[313125568,1706778648261,-500.0,0.00029586,2]
[313125569,1706778648271,-500.0,0.00029586,2]
[313125570,1706778648280,-690.76,0.00029586,2]
[313125571,1706778648290,-500.0,0.00029586,2]
[313125572,1706778648299,-571.66,0.00029586,2]
[313125573,1706778648308,-704.32,0.00029586,2]
[313125574,1706778648317,-500.0,0.00029589,2]
[313125575,1706778648328,-500.0,0.00029589,2]
[313125576,1706778648338,-507.16,0.00029589,2]
[313125577,1706778648347,-500.0,0.00029589,2]
[313125578,1706778648356,-571.02,0.00029589,7]
[313125579,1706778648365,-500.0,0.00029589,2]
[313125580,1706778648374,-500.0,0.00029589,2]
[313125581,1706778648383,-500.0,0.00029589,2]
[313125582,1706778648392,-500.0,0.00029589,2]
[313125583,1706778648401,-727.73,0.00029589,2]
[313125584,1706778648410,-2784.64,0.00029589,2]
[313125585,1706778648419,-500.0,0.00029589,2]
[313125586,1706778648428,-860.78,0.00029589,2]
[313125587,1706778648438,-562.44,0.00029589,2]
[313125588,1706778648447,-500.0,0.00029589,2]
[313125589,1706778648457,-500.0,0.00029589,2]
[313125590,1706778648466,-500.0,0.00029589,2]
[313125591,1706778648475,-1719.87,0.00029589,2]
[313125592,1706778648484,-659.48,0.00029589,2]
[313125593,1706778648493,-500.0,0.00029589,2]
[313125594,1706778648502,-500.0,0.00029589,2]
[313125595,1706778648512,-500.0,0.00029589,2]
[313125596,1706778648521,-500.0,0.00029589,2]
[313125597,1706778648530,-748.96,0.00029589,2]
[313125598,1706778648540,-1740.65,0.00029589,2]
[313125599,1706778648549,-330.07736175,0.00029589,2]
[313125600,1706778648561,-500.0,0.00029589,2]
[313125601,1706778648570,-500.0,0.00029589,2]
[313125602,1706778648579,-500.0,0.00029589,2]
[313125603,1706778648589,-154.65548,0.00029589,2]
[313125604,1706778648598,-500.0,0.00029589,2]
[313125605,1706778648608,-500.0,0.00029589,2]
[313125606,1706778648617,-500.0,0.00029589,2]
[313125607,1706778648627,-965.96,0.00029589,2]
[313125608,1706778648636,-595.36,0.00029589,2]
[313125609,1706778648645,-562.27,0.00029589,2]
[313125610,1706778648654,-500.0,0.00029589,2]
[313125611,1706778648663,-752.71,0.00029589,2]
[313125612,1706778648672,-164.65451484,0.00029589,2]
[313125613,1706778648682,-500.0,0.00029589,2]
[313125614,1706778648691,-1110.9,0.00029589,2]
[313125615,1706778648700,-500.0,0.00029589,2]
[313125616,1706778648710,-500.0,0.00029589,2]
[313125617,1706778648719,-701.69,0.00029589,2]
[313125618,1706778648728,-500.0,0.00029589,2]
[313125619,1706778648738,-500.0,0.00029589,2]
[313125620,1706778648747,-789.27,0.00029589,2]
[313125621,1706778648757,-500.0,0.00029589,2]
[313125622,1706778648766,-500.0,0.00029589,2]
[313125623,1706778648778,-948.54,0.00029589,2]
[313125624,1706778648788,-1122.8,0.00029589,2]
[313125625,1706778648797,-505.98,0.00029589,2]
[313125626,1706778648807,-500.0,0.00029589,2]
[313125627,1706778648816,-500.0,0.00029589,2]
[313125628,1706778648826,-500.0,0.00029589,2]
[313125629,1706778648836,-500.0,0.00029589,2]
[313125630,1706778648845,-705.17,0.00029589,2]
[313125631,1706778648855,-500.0,0.00029589,2]
[313125632,1706778648867,-1466.89,0.00029589,2]
[313125633,1706778648878,-500.0,0.00029589,2]
[313125634,1706778648888,-500.0,0.00029589,2]
[313125635,1706778648899,-500.0,0.00029589,2]
[313125636,1706778648909,-500.0,0.00029589,2]
[313125637,1706778648918,-500.0,0.00029589,2]
[313125638,1706778648927,-500.0,0.00029589,2]
[313125639,1706778648936,-500.0,0.00029589,2]
[313125640,1706778648947,-500.0,0.00029589,2]
[313125641,1706778648957,-1066.44,0.00029589,2]
[313125642,1706778648966,-500.0,0.00029589,2]
[313125643,1706778648975,-842.3,0.00029589,2]
[313125644,1706778648984,-500.0,0.00029589,2]
[313125645,1706778648994,-500.0,0.00029589,2]
[313125646,1706778649003,-500.0,0.00029589,2]
[313125647,1706778649013,-500.0,0.00029589,2]
[313125648,1706778649022,-500.0,0.00029589,2]
[313125649,1706778649031,-500.0,0.00029589,2]
[313125650,1706778649040,-500.0,0.00029589,2]
[313125651,1706778649048,-500.0,0.00029589,2]
[313125652,1706778649057,-548.67,0.00029589,2]
[313125653,1706778649066,-500.0,0.00029589,2]
[313125654,1706778649075,-500.0,0.00029589,2]
[313125655,1706778649085,-500.0,0.00029589,2]
[313125656,1706778649094,-500.0,0.00029589,2]
[313125657,1706778649104,-500.0,0.00029589,2]
[313125658,1706778649113,-9967.14,0.00029589,2]
[313125659,1706778649122,-520.95,0.00029589,2]
[313125660,1706778649132,-786.41,0.00029589,5]
[313125661,1706778649141,-500.0,0.00029589,2]
[313125662,1706778649150,-518.92,0.00029589,2]
[313125663,1706778649159,-847.38,0.00029589,2]
[313125664,1706778649168,-1428.6,0.00029589,5]
[313125665,1706778649177,-1586.17,0.00029589,2]
[313125666,1706778649187,-2377.68,0.00029589,2]
[313125667,1706778649196,-1848.73,0.00029589,2]
[313125668,1706778649205,-954.76,0.00029589,2]
[313125669,1706778649215,-781.3,0.00029589,2]
[313125670,1706778649224,-500.0,0.00029589,2]
[313125671,1706778649234,-529.85,0.00029589,2]
[313125672,1706778649246,-500.0,0.00029589,2]
[313125673,1706778649257,-979.26,0.00029589,2]
[313125674,1706778649267,-714.71,0.00029589,2]
[313125675,1706778649278,-1530.57,0.00029589,2]
[313125676,1706778649287,-518.12,0.00029589,2]
[313125677,1706778649297,-914.52,0.00029589,2]
[313125678,1706778649307,-500.0,0.00029589,2]
[313125679,1706778649315,-500.0,0.00029589,2]
[313125680,1706778649325,-500.0,0.00029589,2]
[313125681,1706778649347,-500.0,0.00029589,2]
[313125682,1706778649358,-712.69,0.00029589,2]
[313125683,1706778649368,-500.0,0.00029589,2]
[313125684,1706778649378,-500.0,0.00029589,2]
[313125685,1706778649388,-155.76170727,0.00029598,2]
[313125686,1706778649398,-174142.3638677,0.0002976,2]
[313125687,1706778649407,-26883.0855429,0.0002978,2]
[313125688,1706778649417,-187.25197847,0.00029782,2]
[313125689,1706778649427,-2000.0,0.00029882,2]
[313125690,1706778649437,-800.0,0.00029895,2]
[313125691,1706778649446,-2400.0,0.000299,10]
[313125692,1706778649456,-216.13747036,0.0002992,2]
[313125693,1706778649465,-431.96095718,0.00029998,2]
[313125694,1706778649475,-8057.135868,0.0003,2]
[313125695,1706778649485,-2769.4487,0.0003,2]
[313125696,1706778649496,-2769.4487,0.0003,2]
[313125697,1706778649506,-2769.4487,0.0003,2]
[313125698,1706778649518,-1000.0,0.0003,2]
[313125699,1706778649541,-20032.52811015,0.0003002,2]
[313125700,1706778649554,-155.76170727,0.00030033,2]
[313125701,1706778649563,-2769.4487,0.0003004,2]
[313125702,1706778649573,-1393.97639371,0.00030078,2]
[313125703,1706778649584,-500.0,0.00030099,2]
[313125704,1706778649594,-154391.34541607,0.000301,2]
[313125705,1706778649604,-512.1,0.00030133,2]
[313125706,1706778649614,-652.34,0.00030133,2]
[313125707,1706778649624,-637.54,0.00030133,2]
[313125708,1706778649634,-2852.19,0.00030133,2]
[313125709,1706778649643,-500.0,0.00030133,2]
[313125710,1706778649653,-500.0,0.00030134,2]
[313125711,1706778649662,-500.0,0.00030134,2]
[313125712,1706778649672,-500.0,0.00030134,2]
[313125713,1706778649681,-1114.08,0.00030134,2]
[313125714,1706778649691,-500.0,0.00030134,2]
[313125715,1706778649700,-500.0,0.00030134,2]
[313125716,1706778649710,-500.0,0.00030134,2]
[313125717,1706778649720,-500.0,0.00030134,2]
[313125718,1706778649730,-474.04867129,0.00030134,2]
[313125719,1706778649741,-690.76,0.00030134,2]
[313125720,1706778649751,-500.0,0.00030134,2]
[313125721,1706778649761,-571.66,0.00030134,2]
[313125722,1706778649770,-704.32,0.00030134,2]
[313125723,1706778649782,-466.06774388,0.00030134,2]
[313125724,1706778649793,-150.01,0.00030135,2]
[313125725,1706778649802,-3306.75797983,0.00030135,2]
[313125726,1706778649813,-500.0,0.00030135,2]
[313125727,1706778649824,-5633.68676721,0.00030136,2]
[313125728,1706778649833,-500.0,0.00030136,2]
[313125729,1706778649844,-500.0,0.00030136,2]
[313125730,1706778649854,-507.16,0.00030136,2]
[313125731,1706778649864,-500.0,0.00030136,2]
[313125732,1706778649873,-571.02,0.00030136,7]
[313125733,1706778649885,-500.0,0.00030136,2]
[313125734,1706778649895,-500.0,0.00030136,2]
[313125735,1706778649905,-500.0,0.00030136,2]
[313125736,1706778649914,-500.0,0.00030136,2]
[313125737,1706778649923,-727.73,0.00030136,2]
[313125738,1706778649932,-2784.64,0.00030136,2]
[313125739,1706778649942,-500.0,0.00030136,2]
[313125740,1706778649951,-860.78,0.00030136,2]
[313125741,1706778649961,-295.16,0.00030136,2]
[313125742,1706778649971,-562.44,0.00030136,2]
[313125743,1706778649982,-500.0,0.00030136,2]
[313125744,1706778649993,-500.0,0.00030136,2]
[313125745,1706778650002,-1719.87,0.00030136,2]
[313125746,1706778650013,-659.48,0.00030136,2]
[313125747,1706778650023,-500.0,0.00030136,2]
[313125748,1706778650033,-500.0,0.00030136,2]
[313125749,1706778650043,-500.0,0.00030136,2]
[313125750,1706778650052,-500.0,0.00030136,2]
[313125751,1706778650061,-748.96,0.00030136,2]
[313125752,1706778650070,-1740.65,0.00030136,2]
[313125753,1706778650079,-500.0,0.00030136,2]
[313125754,1706778650088,-500.0,0.00030136,2]
[313125755,1706778650098,-500.0,0.00030136,2]
[313125756,1706778650107,-500.0,0.00030136,2]
[313125757,1706778650116,-500.0,0.00030136,2]
[313125758,1706778650125,-500.0,0.00030136,2]
[313125759,1706778650135,-965.96,0.00030136,2]
[313125760,1706778650144,-595.36,0.00030136,2]
[313125761,1706778650154,-562.27,0.00030136,2]
[313125762,1706778650164,-500.0,0.00030136,2]
[313125763,1706778650173,-752.71,0.00030136,2]
[313125764,1706778650183,-500.0,0.00030136,2]
[313125765,1706778650192,-1110.9,0.00030136,2]
[313125766,1706778650202,-500.0,0.00030136,2]
[313125767,1706778650211,-500.0,0.00030136,2]
[313125768,1706778650220,-701.69,0.00030136,2]
[313125769,1706778650230,-500.0,0.00030136,2]
[313125770,1706778650239,-500.0,0.00030136,2]
[313125771,1706778650249,-789.27,0.00030136,2]
[313125772,1706778650262,-500.0,0.00030136,2]
[313125773,1706778650271,-500.0,0.00030136,2]
[313125774,1706778650280,-948.54,0.00030136,2]
[313125775,1706778650290,-1122.8,0.00030136,2]
[313125776,1706778650369,-505.98,0.00030136,2]
[313125777,1706778650379,-500.0,0.00030136,2]
[313125778,1706778650388,-500.0,0.00030136,2]
[313125779,1706778650397,-500.0,0.00030136,2]
[313125780,1706778650406,-500.0,0.00030136,2]
[313125781,1706778650416,-705.17,0.00030136,2]
[313125782,1706778650424,-500.0,0.00030136,2]
[313125783,1706778650435,-1466.89,0.00030136,2]
[313125784,1706778650443,-500.0,0.00030136,2]
[313125785,1706778650453,-500.0,0.00030136,2]
[313125786,1706778650462,-500.0,0.00030136,2]
[313125787,1706778650471,-500.0,0.00030136,2]
[313125788,1706778650480,-500.0,0.00030136,2]
[313125789,1706778650489,-500.0,0.00030136,2]
[313125790,1706778650498,-500.0,0.00030136,2]
[313125791,1706778650508,-500.0,0.00030136,2]
[313125792,1706778650518,-1066.44,0.00030136,2]
[313125793,1706778650527,-500.0,0.00030136,2]
[313125794,1706778650536,-842.3,0.00030136,2]
[313125795,1706778650545,-500.0,0.00030136,2]
[313125796,1706778650554,-500.0,0.00030136,2]
[313125797,1706778650564,-500.0,0.00030136,2]
[313125798,1706778650573,-500.0,0.00030136,2]
[313125799,1706778650583,-500.0,0.00030136,2]
[313125800,1706778650592,-466.20911494,0.00030136,2]
[313125801,1706778650602,-500.0,0.00030136,2]
[313125802,1706778650611,-500.0,0.00030136,2]
[313125803,1706778650621,-500.0,0.00030136,2]
[313125804,1706778650631,-548.67,0.00030136,2]
[313125805,1706778650640,-167.95868796,0.00030136,2]
[313125806,1706778650649,-500.0,0.00030136,2]
[313125807,1706778650659,-500.0,0.00030136,2]
[313125808,1706778650669,-500.0,0.00030136,2]
[313125809,1706778650678,-9967.14,0.00030136,2]
[313125810,1706778650687,-520.95,0.00030136,2]
[313125811,1706778650696,-786.41,0.00030136,5]
[313125812,1706778650706,-500.0,0.00030136,2]
[313125813,1706778650715,-518.92,0.00030136,2]
[313125814,1706778650725,-847.38,0.00030136,2]
[313125815,1706778650734,-1428.6,0.00030136,5]
[313125816,1706778650743,-1586.17,0.00030136,2]
[313125817,1706778650752,-150.0,0.00030136,2]
[313125818,1706778650762,-150.0,0.00030136,2]
[313125819,1706778650771,-2377.68,0.00030136,2]
[313125820,1706778650781,-1848.73,0.00030136,2]
[313125821,1706778650791,-954.76,0.00030136,2]
[313125822,1706778650800,-781.3,0.00030136,2]
[313125823,1706778650809,-500.0,0.00030136,2]
[313125824,1706778650818,-529.85,0.00030136,2]
[313125825,1706778650828,-500.0,0.00030136,2]
[313125826,1706778650837,-979.26,0.00030136,2]
[313125827,1706778650847,-714.71,0.00030136,2]
[313125828,1706778650856,-518.12,0.00030136,2]
[313125829,1706778650865,-1530.57,0.00030136,2]
[313125830,1706778650874,-914.52,0.00030136,2]
[313125831,1706778650883,-500.0,0.00030136,2]
[313125832,1706778650892,-500.0,0.00030136,2]
[313125833,1706778650901,-500.0,0.00030136,2]
[313125834,1706778650910,-500.0,0.00030136,2]